bitfinex/quotes_SOLUSD_20220129
["timestamp","ask_amount","ask_price","bid_price","bid_amount"]
[1643429767575,6.0,92.837,92.757,0.25]
[1643429767771,0.25,92.836,92.757,0.25]
[1643429770175,6.0,92.837,92.757,0.25]
[1643429770377,6.0,92.837,92.758,2.72437048]
[1643429770574,45.3082,92.889,92.77,15.51]
[1643429770777,15.51,92.9,92.771,46.33857322]
[1643429771075,23.3171,92.91,92.782,108.8]
[1643429771275,23.3171,92.91,92.792,108.8]
[1643429771678,0.25,92.909,92.802,6.0]
[1643429771875,3.20669142,92.909,92.793,32.74819084]
[1643429772077,3.20669142,92.909,92.791,38.63839788]
[1643429772275,2.95669142,92.908,92.791,38.63839788]
[1643429772676,6.0,92.898,92.791,38.63839788]
[1643429772876,31.677,92.89,92.791,38.63839788]
[1643429773076,6.0,92.88,92.791,38.63839788]
[1643429773277,23.5151,92.879,92.791,38.63839788]
[1643429773679,6.0,92.869,92.791,38.63839788]
[1643429773877,0.25,92.868,92.791,38.63839788]
[1643429774077,6.25,92.868,92.791,38.63839788]
[1643429774679,2.95669142,92.867,92.791,38.63839788]
[1643429774877,0.25,92.866,92.791,38.63839788]
[1643429775078,6.0,92.857,92.791,38.63839788]
[1643429775279,0.25,92.856,92.759,23.1442]
[1643429775677,15.51,92.85,92.76,0.25]
[1643429775876,0.25,92.849,92.76,0.25]
[1643429776076,6.0,92.84,92.76,0.25]
[1643429776276,0.25,92.839,92.76,0.25]
[1643429776482,6.25,92.839,92.76,0.25]
[1643429776676,30.612,92.839,92.743,41.80498142]
[1643429776877,6.0,92.838,92.743,41.80498142]
[1643429777076,6.0,92.829,92.743,41.80498142]
[1643429777282,0.25,92.828,92.743,41.80498142]
[1643429777883,0.25,92.828,92.744,108.8]
[1643429778383,0.25,92.828,92.745,0.25]
[1643429779083,6.0,92.829,92.745,0.25]
[1643429779283,2.95669142,92.863,92.754,6.0]
[1643429779485,48.2822,92.899,92.76,15.51]
[1643429779683,48.2822,92.899,92.762,40.91188698]
[1643429779885,48.2822,92.899,92.765,6.0]
[1643429780084,48.2822,92.899,92.78,15.51]
[1643429780286,0.25,92.898,92.782,108.8]
[1643429780689,6.0,92.889,92.783,0.25]
[1643429780887,0.25,92.888,92.783,0.25]
[1643429781088,0.25,92.888,92.784,2.72437048]
[1643429781388,0.25,92.888,92.785,0.25]
[1643429781589,2.95669142,92.887,92.781,43.32011303]
[1643429781788,0.25,92.886,92.781,42.82011303]
[1643429781986,6.0,92.877,92.781,42.82011303]
[1643429782287,23.2455,92.876,92.781,42.82011303]
[1643429782688,6.0,92.866,92.781,42.82011303]
[1643429782888,24.5529,92.865,92.781,42.82011303]
[1643429783089,6.0,92.855,92.782,0.25]
[1643429784194,0.25,92.854,92.782,0.25]
[1643429784394,0.25,92.854,92.781,42.82011303]
[1643429785414,0.25,92.865,92.781,42.82011303]
[1643429785815,2.95669142,92.863,92.781,42.82011303]
[1643429786015,0.25,92.865,92.781,42.82011303]
[1643429786216,6.0,92.853,92.781,42.82011303]
[1643429786415,0.25,92.865,92.781,42.82011303]
[1643429786416,0.25,92.852,92.781,42.82011303]
[1643429786616,0.25,92.865,92.781,42.82011303]
[1643429787015,6.0,92.86,92.781,42.82011303]
[1643429787415,0.25,92.859,92.781,42.82011303]
[1643429787620,6.0,92.854,92.781,42.82011303]
[1643429787816,0.25,92.853,92.742,108.8]
[1643429788016,6.0,92.849,92.743,0.25]
[1643429788416,6.0,92.84,92.743,0.25]
[1643429788716,6.0,92.84,92.743,39.78307552]
[1643429788919,0.25,92.839,92.743,39.78307552]
[1643429789117,6.0,92.838,92.743,39.78307552]
[1643429789316,0.25,92.837,92.743,39.53307552]
[1643429790919,0.25,92.837,92.744,0.25]
[1643429791318,2.95669142,92.836,92.744,0.25]
[1643429791518,6.0,92.826,92.744,0.25]
[1643429792020,6.25,92.825,92.744,0.25]
[1643429794317,6.25,92.825,92.743,39.53307552]
[1643429796119,6.0,92.82,92.743,39.53307552]
[1643429796319,6.0,92.815,92.743,39.53307552]
[1643429796522,0.25,92.819,92.743,39.53307552]
[1643429797824,0.25,92.824,92.744,0.25]
[1643429799125,6.0,92.822,92.744,0.25]
[1643429799325,24.2957,92.821,92.743,39.53307552]
[1643429799525,6.0,92.811,92.743,39.53307552]
[1643429799927,0.25,92.81,92.743,39.53307552]
[1643429800126,6.25,92.81,92.743,39.53307552]
[1643429800329,6.25,92.81,92.73,2.72437048]
[1643429800530,6.25,92.81,92.731,0.25]
[1643429801127,24.0308,92.809,92.731,0.25]
[1643429801328,0.25,92.808,92.731,0.25]
[1643429801530,6.0,92.799,92.731,0.25]
[1643429801729,6.0,92.799,92.725,0.25]
[1643429801929,0.25,92.798,92.725,0.25]
[1643429806136,0.25,92.798,92.726,2.72437048]
[1643429806435,0.25,92.798,92.727,0.25]
[1643429806735,0.25,92.798,92.737,44.12316206]
[1643429807136,0.25,92.798,92.738,0.25]
[1643429807338,6.0,92.799,92.738,30.28799132]
[1643429807537,75.6486,92.88,92.749,108.8]
[1643429807739,15.51,92.85,92.749,108.8]
[1643429807938,15.51,92.85,92.76,108.8]
[1643429808141,15.51,92.85,92.762,108.8]
[1643429808338,15.51,92.85,92.763,0.25]
[1643429808543,15.51,92.85,92.763,32.7623618]
[1643429808940,15.51,92.85,92.764,30.28799132]
[1643429809139,6.0,92.84,92.764,30.28799132]
[1643429809340,6.0,92.84,92.765,30.03799132]
[1643429809540,6.0,92.846,92.765,30.03799132]
[1643429809740,6.0,92.846,92.766,111.77437048]
[1643429810139,6.0,92.846,92.778,44.26447735]
[1643429810339,6.0,92.846,92.779,109.05]
[1643429810743,6.0,92.846,92.779,139.08799132]
[1643429811139,6.0,92.846,92.781,108.8]
[1643429811341,6.0,92.846,92.782,0.25]
[1643429811546,6.0,92.846,92.782,139.08799132]
[1643429811941,6.0,92.846,92.783,30.03799132]
[1643429812341,6.0,92.846,92.784,0.25]
[1643429812742,6.0,92.846,92.785,30.03799132]
[1643429813142,6.0,92.846,92.786,0.25]
[1643429813444,6.0,92.846,92.787,30.03799132]
[1643429813844,6.0,92.846,92.788,0.25]
[1643429814042,6.0,92.846,92.788,30.28799132]
[1643429814446,6.0,92.846,92.789,30.03799132]
[1643429814942,0.25,92.845,92.79,0.25]
[1643429815545,6.0,92.846,92.789,30.03799132]
[1643429815742,0.25,92.845,92.791,30.03799132]
[1643429815946,0.25,92.845,92.792,39.8990128]
[1643429816444,0.25,92.845,92.759,2.94165185]
[1643429816644,49.2908,92.845,92.757,2.94165185]
[1643429816844,49.2908,92.845,92.76,30.03205192]
[1643429817045,6.0,92.835,92.76,30.03205192]
[1643429817245,22.6263,92.834,92.761,4.63952689]
[1643429817447,22.8763,92.834,92.762,35.85061956]
[1643429817644,6.0,92.824,92.762,65.88267148]
[1643429817846,0.25,92.823,92.762,65.88267148]
[1643429818046,22.8763,92.823,92.763,30.03205192]
[1643429818448,6.0,92.813,92.763,30.03205192]
[1643429818845,6.0,92.813,92.764,0.25]
[1643429819055,0.25,92.823,92.764,0.25]
[1643429819246,0.25,92.823,92.777,1.47219235]
[1643429819548,24.245,92.844,92.778,41.3334555]
[1643429819749,24.245,92.844,92.779,1.47219235]
[1643429819948,24.245,92.844,92.78,1.47219235]
[1643429820147,24.245,92.844,92.78,31.50424427]
[1643429820548,24.245,92.844,92.778,39.86126315]
[1643429820549,6.0,92.834,92.781,30.03205192]
[1643429820951,0.25,92.833,92.779,30.03205192]
[1643429825655,0.25,92.833,92.778,39.86126315]
[1643429826059,0.25,92.833,92.779,30.03582619]
[1643429828478,0.25,92.833,92.753,71.14640496]
[1643429828479,0.25,92.833,92.775,31.50801854]
[1643429828681,24.9509,92.833,92.775,30.03582619]
[1643429828879,24.9509,92.833,92.776,30.03582619]
[1643429829079,6.0,92.823,92.777,43.88858657]
[1643429829279,0.25,92.822,92.777,43.88858657]
[1643429829882,0.25,92.822,92.772,1.47219235]
[1643429830083,22.7967,92.822,92.772,1.47219235]
[1643429830280,22.7967,92.822,92.77,1.47219235]
[1643429830481,6.0,92.812,92.773,30.03718439]
[1643429830881,6.0,92.812,92.774,43.0406898]
[1643429830882,0.25,92.811,92.774,43.0406898]
[1643429831082,23.2747,92.811,92.774,43.0406898]
[1643429831287,23.2747,92.811,92.775,30.03718439]
[1643429831484,6.0,92.801,92.775,30.03718439]
[1643429834283,6.0,92.801,92.777,1.47219235]
[1643429834485,6.0,92.801,92.775,1.47219235]
[1643429834685,6.0,92.801,92.778,30.03718439]
[1643429835085,6.0,92.801,92.777,31.50937674]
[1643429835285,6.0,92.801,92.777,30.03718439]
[1643429835484,6.0,92.801,92.778,30.03718439]
[1643429835886,6.0,92.801,92.777,30.03718439]
[1643429836085,6.0,92.801,92.777,31.50937674]
[1643429836488,6.0,92.801,92.779,1.47219235]
[1643429837287,0.25,92.8,92.778,1.47219235]
[1643429837488,6.0,92.801,92.778,1.47219235]
[1643429837687,6.0,92.801,92.723,108.8]
[1643429837688,6.0,92.801,92.774,1.47219235]
[1643429837888,0.25,92.8,92.772,1.47219235]
[1643429838291,0.25,92.8,92.773,30.03782634]
[1643429841393,0.25,92.8,92.772,30.03782634]
[1643429841595,0.25,92.8,92.774,30.03782634]
[1643429841994,0.25,92.8,92.772,30.03782634]
[1643429842194,0.25,92.8,92.774,1.47219235]
[1643429842998,0.25,92.8,92.771,1.47219235]
[1643429843597,0.25,92.8,92.772,30.0388507]
[1643429845224,0.25,92.8,92.774,1.47219235]
[1643429845599,0.25,92.8,92.775,30.0388507]
[1643429848202,0.25,92.8,92.772,1.47219235]
[1643429848603,0.25,92.8,92.773,30.03987013]
[1643429849013,6.0,92.801,92.773,68.62857131]
[1643429849405,6.0,92.801,92.774,1.47219235]
[1643429849603,6.0,92.801,92.775,1.47219235]
[1643429849804,0.25,92.8,92.775,30.0389988]
[1643429850002,23.2483,92.8,92.775,30.0389988]
[1643429850204,23.2483,92.8,92.775,1.47219235]
[1643429850406,6.0,92.79,92.773,31.51119115]
[1643429850607,6.0,92.79,92.772,1.47219235]
[1643429850803,0.25,92.789,92.772,1.47219235]
[1643429851004,0.25,92.789,92.773,30.03970234]
[1643429851802,0.25,92.789,92.773,72.69289057]
[1643429852203,0.25,92.789,92.773,42.65318823]
[1643429852404,0.25,92.789,92.771,1.47219235]
[1643429852602,0.25,92.789,92.772,1.47219235]
[1643429853003,0.25,92.789,92.771,1.47219235]
[1643429853402,0.25,92.789,92.772,31.51224396]
[1643429853802,0.25,92.789,92.772,1.47219235]
[1643429856908,0.25,92.789,92.771,1.47219235]
[1643429857507,6.25,92.789,92.76,1.47219235]
[1643429857709,29.3981,92.789,92.763,1.47219235]
[1643429858211,29.3981,92.789,92.764,38.01220823]
[1643429858409,29.3981,92.789,92.764,68.05474758]
[1643429858609,29.3981,92.789,92.765,1.47219235]
[1643429858809,29.3981,92.789,92.765,31.5147317]
[1643429859209,29.3981,92.789,92.765,1.47219235]
[1643429859409,29.3981,92.789,92.766,1.47219235]
[1643429859612,29.3981,92.789,92.764,36.54001588]
[1643429860820,29.3981,92.789,92.763,1.47219235]
[1643429861318,29.3981,92.789,92.723,4.6257708]
[1643429861319,29.3981,92.789,92.76,1.47219235]
[1643429861518,29.3981,92.789,92.759,1.47219235]
[1643429861720,29.3981,92.789,92.758,1.47219235]
[1643429862120,29.3981,92.789,92.76,1.47219235]
[1643429862318,29.3981,92.789,92.759,31.51618966]
[1643429862520,29.3981,92.789,92.759,30.04399731]
[1643429862719,29.3981,92.789,92.757,1.47219235]
[1643429863119,29.3981,92.789,92.76,1.47219235]
[1643429863519,29.3981,92.789,92.761,30.04387929]
[1643429863721,29.3981,92.789,92.761,31.51607164]
[1643429864121,6.0,92.789,92.761,31.51607164]
[1643429864322,6.0,92.815,92.77,40.54032874]
[1643429864522,6.0,92.815,92.777,1.47219235]
[1643429864726,6.0,92.815,92.774,1.47219235]
[1643429865124,6.0,92.815,92.775,30.04387929]
[1643429865524,6.0,92.814,92.777,1.47219235]
[1643429865726,6.0,92.814,92.775,1.47219235]
[1643429866025,0.25,92.813,92.774,1.47219235]
[1643429866426,6.0,92.814,92.774,1.47219235]
[1643429867230,6.0,92.814,92.773,1.47219235]
[1643429867427,6.0,92.814,92.772,1.47219235]
[1643429867629,6.0,92.814,92.77,40.54032874]
[1643429867841,0.25,92.813,92.773,31.51152107]
[1643429868242,0.25,92.813,92.774,1.47219235]
[1643429868542,0.25,92.813,92.772,1.47219235]
[1643429868744,0.25,92.813,92.774,1.47219235]
[1643429869343,6.0,92.814,92.775,0.25]
[1643429869543,53.906,92.89,92.775,0.25]
[1643429869544,15.51,92.85,92.778,1.47219235]
[1643429869746,23.5906,92.868,92.797,39.36228487]
[1643429869943,0.25,92.844,92.809,1.47219235]
[1643429870344,0.25,92.844,92.798,24.2347]
[1643429870345,0.25,92.844,92.81,31.50825516]
[1643429870643,0.25,92.844,92.811,45.42609637]
[1643429870844,0.25,92.844,92.811,75.46215918]
[1643429871045,6.0,92.858,92.811,75.46215918]
[1643429871244,0.25,92.857,92.812,30.03606281]
[1643429871644,0.25,92.857,92.811,45.42609637]
[1643429872044,23.5906,92.868,92.811,45.42609637]
[1643429872445,23.5906,92.868,92.812,30.02675327]
[1643429872744,22.8958,92.886,92.812,30.02675327]
[1643429872944,24.6233,92.885,92.813,0.25]
[1643429873146,24.6233,92.885,92.815,1.47219235]
[1643429873345,24.6233,92.885,92.816,0.25]
[1643429873546,6.0,92.875,92.816,0.25]
[1643429873745,6.0,92.875,92.816,30.27675327]
[1643429873946,6.0,92.875,92.816,0.25]
[1643429874548,1.4951223,92.934,92.823,6.0]
[1643429874751,1.4951223,92.934,92.831,39.86357708]
[1643429874955,2.98854853,92.96,92.831,39.86357708]
[1643429874956,2.98854853,92.96,92.851,1.47219235]
[1643429875149,1.49235118,92.974,92.89,16.143]
[1643429875357,1.49235118,92.974,92.891,33.55435703]
[1643429875554,24.7195,93.002,92.901,6.0]
[1643429875954,24.7195,93.002,92.902,0.25]
[1643429876156,5.5,92.992,92.902,0.25]
[1643429877059,5.5,92.992,92.896,0.25]
[1643429877456,8.45669142,92.992,92.892,0.25]
[1643429877657,8.45669142,92.992,92.892,109.05]
[1643429878658,0.25,92.991,92.892,109.05]
[1643429879157,2.95669142,92.99,92.892,109.05]
[1643429879357,0.25,92.989,92.892,109.05]
[1643429880260,2.95669142,92.991,92.892,109.05]
[1643429880460,6.0,92.981,92.892,109.05]
[1643429880658,6.0,92.981,92.902,6.0]
[1643429880859,6.0,92.981,92.903,0.25]
[1643429881060,6.0,92.981,92.892,0.25]
[1643429881664,0.25,92.98,92.892,0.25]
[1643429881963,0.25,92.98,92.892,109.05]
[1643429882770,6.0,92.992,92.892,109.05]
[1643429882966,0.25,92.991,92.892,109.05]
[1643429883366,6.0,92.992,92.892,109.05]
[1643429883567,6.0,92.992,92.892,0.25]
[1643429884166,6.0,92.992,92.892,109.05]
[1643429884767,0.25,92.991,92.892,109.05]
[1643429885967,0.25,92.991,92.902,6.0]
[1643429886367,0.25,92.991,92.9,15.51]
[1643429887372,0.25,92.991,92.901,109.05]
[1643429887576,0.25,92.991,92.901,0.25]
[1643429887974,3.20669142,92.991,92.901,0.25]
[1643429888274,0.25,92.991,92.901,0.25]
[1643429888474,3.5,92.981,92.901,0.25]
[1643429888673,24.7866,92.99,92.901,0.25]
[1643429888875,0.25,92.98,92.901,0.25]
[1643429889374,0.25,92.98,92.901,109.05]
[1643429889576,0.25,92.98,92.901,0.25]
[1643429889775,0.25,92.989,92.901,109.05]
[1643429890380,6.0,92.98,92.901,109.05]
[1643429890779,0.25,92.979,92.901,0.25]
[1643429893885,6.0,92.98,92.901,0.25]
[1643429895107,0.25,92.979,92.901,0.25]
[1643429895306,6.0,92.98,92.901,109.05]
[1643429895508,24.8048,93.003,92.912,40.1880493]
[1643429895901,24.8048,93.003,92.913,0.25]
[1643429896904,6.0,92.993,92.913,0.25]
[1643429897105,6.0,92.992,92.913,0.25]
[1643429897304,6.25,92.992,92.913,0.25]
[1643429898807,6.25,92.992,92.912,40.1880493]
[1643429899004,2.95669142,92.991,92.912,40.1880493]
[1643429899406,6.0,92.981,92.912,40.1880493]
[1643429899807,0.25,92.98,92.912,40.1880493]
[1643429900006,6.25,92.98,92.912,40.1880493]
[1643429904309,6.25,92.98,92.929,1.47219235]
[1643429904512,6.25,92.98,92.93,43.32988483]
[1643429905310,6.25,92.98,92.931,1.47219235]
[1643429906316,6.25,92.98,92.93,43.32988483]
[1643429906714,6.25,92.98,92.931,1.47219235]
[1643429907114,6.0,92.978,92.942,1.47219235]
[1643429907315,0.25,92.977,92.95,1.47219235]
[1643429907516,6.0,92.98,92.951,40.9290483]
[1643429907719,6.0,92.98,92.952,1.47219235]
[1643429908114,6.0,92.98,92.951,40.9290483]
[1643429908115,6.0,92.98,92.951,42.40124065]
[1643429908514,1.49235118,93.044,92.955,1.47219235]
[1643429908715,24.4684,93.022,92.959,1.47219235]
[1643429908915,24.4684,93.022,92.965,1.47219235]
[1643429909116,24.4684,93.022,92.967,1.47219235]
[1643429909314,24.4684,93.022,92.968,0.25]
[1643429909516,24.4684,93.022,92.971,1.47219235]
[1643429909715,24.4684,93.022,92.972,1.47219235]
[1643429909915,24.4684,93.022,92.968,0.25]
[1643429910515,24.4684,93.022,92.962,1.47219235]
[1643429910717,6.0,93.012,92.962,1.47219235]
[1643429911018,6.25,93.011,92.947,1.47219235]
[1643429911215,6.25,93.011,92.949,1.47219235]
[1643429911416,9.20669142,93.011,92.944,1.47219235]
[1643429911619,2.95669142,93.01,92.95,45.33075391]
[1643429911816,0.25,93.009,92.95,45.33075391]
[1643429912017,6.0,93.0,92.95,45.33075391]
[1643429912417,0.25,92.999,92.95,45.33075391]
[1643429912617,6.0,92.998,92.95,45.33075391]
[1643429912916,0.25,92.997,92.951,1.47219235]
[1643429913116,0.25,92.997,92.95,45.33075391]
[1643429914119,0.25,93.011,92.95,45.33075391]
[1643429915120,6.0,93.012,92.95,45.33075391]
[1643429916320,0.25,93.011,92.95,45.33075391]
[1643429917320,0.25,93.011,92.941,1.47219235]
[1643429917321,3.20669142,93.011,92.941,1.47219235]
[1643429917521,15.51,93.01,92.922,1.47219235]
[1643429917722,6.0,93.001,92.912,1.47219235]
[1643429918023,6.0,93.001,92.886,2.94165185]
[1643429918024,6.0,93.0,92.917,1.47219235]
[1643429918222,9.20669142,93.0,92.916,1.47219235]
[1643429918423,6.0,92.999,92.916,1.47219235]
[1643429918625,2.95669142,92.999,92.915,1.47219235]
[1643429918824,3.20669142,92.998,92.914,1.47219235]
[1643429919025,3.20669142,92.998,92.921,1.47219235]
[1643429919225,6.0,92.988,92.924,45.30101261]
[1643429919428,0.25,92.987,92.925,1.47219235]
[1643429919626,0.25,92.987,92.924,46.77320496]
[1643429919827,0.25,92.987,92.925,1.47219235]
[1643429920331,0.25,92.987,92.926,1.47219235]
[1643429920532,0.25,92.999,92.926,1.47219235]
[1643429921136,23.1958,92.999,92.926,1.47219235]
[1643429921537,6.0,92.989,92.926,1.47219235]
[1643429921933,0.25,92.988,92.925,1.47219235]
[1643429922132,6.0,92.989,92.926,0.25]
[1643429922333,6.0,92.989,92.931,1.47219235]
[1643429922632,23.0785,93.011,92.925,1.47219235]
[1643429922633,0.25,92.988,92.925,1.47219235]
[1643429922833,0.25,93.0,92.928,1.47219235]
[1643429923033,6.25,93.0,92.928,1.47219235]
[1643429923234,6.25,93.0,92.929,1.47219235]
[1643429924136,6.25,93.0,92.93,1.47219235]
[1643429924536,6.25,93.0,92.929,1.47219235]
[1643429924737,6.25,93.0,92.924,45.30101261]
[1643429924940,24.2978,92.999,92.924,45.30101261]
[1643429925137,6.0,92.989,92.924,45.30101261]
[1643429925338,0.25,92.988,92.924,45.30101261]
[1643429925737,6.0,92.989,92.924,45.30101261]
[1643429925938,0.25,92.988,92.924,45.30101261]
[1643429926738,6.0,92.989,92.925,0.25]
[1643429926939,6.0,92.989,92.926,1.47219235]
[1643429927138,6.0,92.989,92.925,1.72219235]
[1643429927859,6.0,92.989,92.925,0.25]
[1643429928355,23.0785,93.011,92.925,0.25]
[1643429928757,0.25,93.01,92.925,1.72219235]
[1643429928958,6.0,93.001,92.926,1.47219235]
[1643429929356,0.25,93.0,92.927,0.25]
[1643429929559,6.25,93.0,92.927,0.25]
[1643429930357,6.25,93.0,92.926,0.25]
[1643429930558,6.25,93.0,92.925,1.47219235]
[1643429930756,6.25,93.0,92.924,45.30101261]
[1643429930959,23.7357,92.999,92.924,45.30101261]
[1643429931156,6.0,92.989,92.924,45.30101261]
[1643429931356,0.25,92.988,92.924,45.30101261]
[1643429933156,23.857,92.988,92.924,45.30101261]
[1643429933556,6.0,92.978,92.924,45.30101261]
[1643429933958,0.25,92.977,92.924,45.30101261]
[1643429939268,0.25,92.977,92.908,1.47219235]
[1643429939464,2.95669142,92.976,92.908,1.47219235]
[1643429939666,2.95669142,92.976,92.887,1.47219235]
[1643429939865,6.0,92.966,92.876,1.47219235]
[1643429940068,6.0,92.966,92.852,3.9799406]
[1643429940069,6.0,92.963,92.888,29.99943744]
[1643429940270,0.25,92.962,92.888,29.99943744]
[1643429940669,6.0,92.955,92.877,37.85501595]
[1643429940870,24.6704,92.954,92.889,29.99943744]
[1643429941070,27.62709142,92.954,92.889,29.99943744]
[1643429941270,6.0,92.944,92.878,29.99943744]
[1643429941673,6.25,92.943,92.878,29.99943744]
[1643429942171,6.25,92.943,92.882,1.47219235]
[1643429942573,6.25,92.943,92.883,29.99943744]
[1643429942871,6.25,92.943,92.883,31.47162979]
[1643429943471,6.25,92.943,92.884,29.99943744]
[1643429944272,6.25,92.943,92.882,31.47162979]
[1643429944474,6.25,92.943,92.883,1.47219235]
[1643429944672,6.25,92.943,92.883,29.99943744]
[1643429945172,6.25,92.943,92.877,37.85501595]
[1643429945173,6.25,92.943,92.878,29.99943744]
[1643429946175,2.95669142,92.942,92.878,29.99943744]
[1643429946374,0.25,92.941,92.878,29.99943744]
[1643429946581,6.0,92.932,92.878,29.99943744]
[1643429946774,0.25,92.931,92.878,29.99943744]
[1643429947175,6.0,92.93,92.877,37.85501595]
[1643429947375,0.25,92.929,92.877,37.85501595]
[1643429948577,0.25,92.936,92.877,37.85501595]
[1643429950076,6.0,92.93,92.877,37.85501595]
[1643429950275,0.25,92.929,92.877,37.85501595]
[1643429950677,6.0,92.926,92.877,37.85501595]
[1643429950877,0.25,92.925,92.877,37.85501595]
[1643429951477,0.25,92.925,92.844,1.47219235]
[1643429951682,0.25,92.925,92.825,44.86644009]
[1643429951683,2.95669142,92.924,92.835,1.47219235]
[1643429951883,15.51,92.92,92.845,30.00834046]
[1643429952086,31.672,92.92,92.845,30.00834046]
[1643429952285,6.0,92.91,92.835,30.00834046]
[1643429952483,15.51,92.9,92.836,38.07351456]
[1643429952887,0.25,92.899,92.836,38.07351456]
[1643429953084,6.0,92.89,92.836,38.07351456]
[1643429953285,0.25,92.889,92.836,38.07351456]
[1643429954510,0.25,92.898,92.836,38.07351456]
[1643429955314,2.95669142,92.897,92.804,1.47219235]
[1643429955509,2.95669142,92.897,92.794,23.818]
[1643429955510,6.0,92.887,92.802,1.47219235]
[1643429955710,47.1312,92.886,92.798,1.47219235]
[1643429955911,47.3812,92.886,92.803,30.01714404]
[1643429956215,6.0,92.876,92.804,39.28463384]
[1643429956511,0.25,92.875,92.804,39.28463384]
[1643429956912,0.25,92.875,92.805,30.01714404]
[1643429957115,24.3663,92.875,92.805,30.01714404]
[1643429957613,6.0,92.865,92.805,30.01714404]
[1643429957813,0.25,92.864,92.805,30.01714404]
[1643429958413,0.25,92.864,92.804,39.28463384]
[1643429959213,0.25,92.864,92.805,30.01668553]
[1643429959615,0.25,92.864,92.804,39.28463384]
[1643429961017,3.20669142,92.864,92.804,39.28463384]
[1643429961416,6.0,92.854,92.804,39.28463384]
[1643429961817,0.25,92.853,92.804,39.28463384]
[1643429962016,6.25,92.853,92.804,39.28463384]
[1643429962618,6.25,92.853,92.775,24.66089235]
[1643429962819,24.9912,92.852,92.775,23.1887]
[1643429963117,6.0,92.842,92.776,30.2738823]
[1643429963318,0.25,92.841,92.776,30.2738823]
[1643429963517,0.25,92.841,92.777,35.15535316]
[1643429963718,0.25,92.841,92.777,65.17923546]
[1643429964120,6.25,92.841,92.777,35.15535316]
[1643429965121,6.25,92.841,92.779,1.47219235]
[1643429966023,6.25,92.841,92.777,36.62754551]
[1643429966323,6.25,92.841,92.777,35.15535316]
[1643429966724,6.25,92.841,92.777,36.62754551]
[1643429966925,6.25,92.841,92.777,35.15535316]
[1643429967728,6.0,92.841,92.777,35.15535316]
[1643429968024,6.0,92.841,92.778,0.25]
[1643429968225,6.0,92.841,92.778,1.72219235]
[1643429968928,6.0,92.841,92.786,1.47219235]
[1643429969827,6.0,92.841,92.777,35.15535316]
[1643429969828,6.0,92.841,92.784,1.47219235]
[1643429970231,0.25,92.84,92.783,1.47219235]
[1643429971236,0.25,92.84,92.781,1.47219235]
[1643429971730,23.3863,92.84,92.781,1.47219235]
[1643429972130,6.0,92.83,92.781,1.47219235]
[1643429972331,0.25,92.829,92.78,1.47219235]
[1643429972533,0.25,92.829,92.779,1.47219235]
[1643429974132,0.25,92.829,92.78,1.47219235]
[1643429974934,0.25,92.829,92.782,1.47219235]
[1643429975237,0.25,92.829,92.78,1.47219235]
[1643429975635,0.25,92.829,92.779,1.47219235]
[1643429975835,0.25,92.829,92.78,1.47219235]
[1643429976435,0.25,92.829,92.777,1.47219235]
[1643429976638,23.1127,92.829,92.774,1.47219235]
[1643429976836,23.1127,92.829,92.773,1.47219235]
[1643429977036,6.0,92.819,92.773,1.47219235]